fUST/lending_fUST_20241005
["ID","MTS","AMOUNT","RATE_DAILY","PERIOD"]
[339853261,1728070240278,-500.0,0.00017799,2]
[339853263,1728070240288,-500.0,0.00017799,2]
[339853265,1728070240298,-500.0,0.00017799,2]
[339853267,1728070240307,-500.0,0.00017799,2]
[339853269,1728070240317,-500.0,0.00017799,2]
[339853271,1728070240328,-500.0,0.00017799,2]
[339853273,1728070240338,-500.0,0.00017799,2]
[339853275,1728070240348,-500.0,0.00017799,2]
[339853277,1728070240357,-500.0,0.00017799,2]
[339853279,1728070240367,-500.0,0.00017799,2]
[339853281,1728070240376,-500.0,0.00017799,2]
[339853283,1728070240386,-1228.96425601,0.00017802,2]
[339853286,1728070240406,-3364.79999996,0.00017802,2]
[339853561,1728070242959,-20306.23574403,0.00017802,2]
[339853562,1728070242969,-151.0,0.00017802,2]
[339853563,1728070242978,-151.0,0.00017802,2]
[339853564,1728070242987,-151.0,0.00017802,2]
[339853565,1728070242996,-151.0,0.00017802,2]
[339853566,1728070243006,-192.124349,0.00017802,2]
[339853567,1728070243015,-192.124349,0.00017802,2]
[339853568,1728070243024,-1950.13203,0.00017802,2]
[339853569,1728070243034,-1950.13203,0.00017802,2]
[339853570,1728070243043,-439.444052,0.00017802,2]
[339853571,1728070243052,-439.444052,0.00017802,2]
[339853572,1728070243062,-151.0,0.00017802,2]
[339853573,1728070243071,-734.916126,0.00017802,2]
[339853574,1728070243081,-734.916126,0.00017802,2]
[339853575,1728070243091,-151.0,0.00017802,2]
[339853576,1728070243100,-151.0,0.00017802,2]
[339853577,1728070243109,-151.0,0.00017802,2]
[339853578,1728070243119,-151.0,0.00017802,2]
[339853579,1728070243128,-158.824858,0.00017802,2]
[339853580,1728070243137,-238.099535,0.00017802,2]
[339853581,1728070243147,-158.824858,0.00017802,2]
[339853582,1728070243158,-1625.859354,0.00017802,2]
[339853583,1728070243167,-1625.859354,0.00017802,2]
[339853584,1728070243176,-194.907236,0.00017802,2]
[339853585,1728070243186,-194.907236,0.00017802,2]
[339853586,1728070243195,-151.221837,0.00017802,2]
[339853587,1728070243205,-224.09808774,0.00018046,2]
[339853588,1728070243215,-500.0,0.00018144,2]
[339853589,1728070243224,-500.0,0.0001826,2]
[339853590,1728070243233,-171.73982946,0.0001826,2]
[339853591,1728070243243,-500.0,0.0001826,2]
[339853592,1728070243253,-287.54060392,0.0001826,2]
[339853593,1728070243262,-500.0,0.0001826,2]
[339853594,1728070243272,-500.0,0.0001826,2]
[339853596,1728070243392,-193.01085874,0.00018281,2]
[339853599,1728070243420,-194.907236,0.00018293,2]
[339853600,1728070243429,-194.907236,0.00018293,2]
[339853601,1728070243438,-2386.998866,0.00018293,2]
[339853602,1728070243448,-1000.0,0.00018397,2]
[339853603,1728070243457,-224.09808771,0.000185,2]
[339853604,1728070243466,-1500.0,0.00018534,2]
[339853605,1728070243476,-1000.0,0.00018671,2]
[339853606,1728070243485,-420.0,0.00018742,2]
[339853607,1728070243494,-193.31121787,0.00018804,2]
[339853608,1728070243504,-360.0,0.00018879,2]
[339853609,1728070243513,-251.58778344,0.00018889,2]
[339853610,1728070243522,-183.82939826,0.00018889,2]
[339853611,1728070243531,-557.56630909,0.00018889,2]
[339853612,1728070243541,-257.51072363,0.00018889,2]
[339853613,1728070243551,-500.0,0.00018889,2]
[339853614,1728070243560,-336.51162669,0.00018889,2]
[339853615,1728070243569,-500.0,0.00018889,2]
[339853616,1728070243579,-500.0,0.00018889,2]
[339853617,1728070243590,-500.0,0.00018889,2]
[339853618,1728070243601,-500.0,0.00018889,2]
[339853619,1728070243610,-464.39192822,0.00018889,2]
[339853620,1728070243619,-500.0,0.00018889,2]
[339853621,1728070243628,-500.0,0.00018889,2]
[339853622,1728070243638,-15882.43785942,0.0001889,2]
[339853623,1728070243647,-59416.50065769,0.0001889,2]
[339853624,1728070243657,-19262.0998206,0.0001889,2]
[339853625,1728070243666,-151.0,0.0001889,2]
[339853626,1728070243675,-151.0,0.0001889,2]
[339853627,1728070243685,-158.824858,0.0001889,2]
[339853628,1728070243694,-158.824858,0.0001889,2]
[339853629,1728070243703,-1625.859354,0.0001889,2]
[339853630,1728070243713,-1625.859354,0.0001889,2]
[339853631,1728070243723,-194.907236,0.0001889,2]
[339853632,1728070243732,-194.907236,0.0001889,2]
[339853633,1728070243742,-194.907236,0.0001889,2]
[339853634,1728070243752,-194.907236,0.0001889,2]
[339853635,1728070243761,-194.907236,0.0001889,2]
[339853636,1728070243771,-194.907236,0.0001889,2]
[339853637,1728070243780,-192.124349,0.000189,2]
[339853638,1728070243789,-192.124349,0.000189,2]
[339853639,1728070243798,-439.444052,0.000189,2]
[339853640,1728070243807,-439.444052,0.000189,2]
[339853641,1728070243817,-151.0,0.000189,2]
[339853642,1728070243827,-734.916126,0.000189,2]
[339853643,1728070243836,-734.916126,0.000189,2]
[339853644,1728070243848,-151.0,0.000189,2]
[339853645,1728070243858,-151.0,0.000189,2]
[339853646,1728070243868,-1000.0,0.00018904,14]
[339853647,1728070243879,-164.643415,0.00018904,2]
[339853648,1728070243888,-224.09808771,0.00018954,2]
[339853649,1728070243899,-2386.998866,0.00018978,2]
[339853650,1728070243911,-85940.36528706,0.00019,2]
[339853651,1728070243922,-151.0,0.00019,2]
[339853652,1728070243933,-151.0,0.00019,2]
[339853653,1728070243943,-158.824858,0.00019,2]
[339853654,1728070243954,-158.824858,0.00019,2]
[339853655,1728070243963,-158.824858,0.00019,2]
[339853656,1728070243973,-158.824858,0.00019,2]
[339853657,1728070243983,-1625.859354,0.00019,2]
[339853658,1728070243993,-1625.859354,0.00019,2]
[339853659,1728070244004,-1625.859354,0.00019,2]
[339853660,1728070244014,-1625.859354,0.00019,2]
[339853661,1728070244024,-194.907236,0.00019,2]
[339853662,1728070244035,-194.907236,0.00019,2]
[339853663,1728070244044,-152.86828932,0.00019172,2]
[339853664,1728070244054,-1000.0,0.00019178,16]
[339853665,1728070244064,-176.215383,0.00019178,2]
[339853666,1728070244074,-412.8502912,0.00019205,2]
[339853667,1728070244083,-412.8502912,0.00019205,2]
[339853668,1728070244095,-412.8502912,0.00019205,2]
[339853669,1728070244105,-412.8502912,0.00019205,2]
[339853670,1728070244117,-968.305028,0.00019285,2]
[339853671,1728070244127,-224.09808771,0.00019407,2]
[339853672,1728070244138,-19262.0998206,0.00019442,3]
[339853673,1728070244149,-151.0,0.00019442,2]
[339853674,1728070244159,-158.824858,0.00019442,2]
[339853675,1728070244168,-158.824858,0.00019442,2]
[339853676,1728070244177,-1625.859354,0.00019442,2]
[339853677,1728070244186,-1625.859354,0.00019442,2]
[339853678,1728070244195,-194.907236,0.00019442,2]
[339853679,1728070244206,-194.907236,0.00019442,2]
[339853680,1728070244215,-1000.0,0.00019452,18]
[339853681,1728070244224,-192.124349,0.00019452,2]
[339853682,1728070244234,-192.124349,0.00019452,2]
[339853683,1728070244243,-192.124349,0.00019452,2]
[339853684,1728070244253,-192.124349,0.00019452,2]
[339853685,1728070244263,-439.444052,0.00019452,2]
[339853686,1728070244274,-439.444052,0.00019452,2]
[339853687,1728070244285,-439.444052,0.00019452,2]
[339853688,1728070244296,-151.0,0.00019452,2]
[339853689,1728070244318,-439.444052,0.00019452,2]
[339853690,1728070244331,-734.916126,0.00019452,2]
[339853691,1728070244342,-151.0,0.00019452,2]
[339853692,1728070244353,-734.916126,0.00019452,2]
[339853693,1728070244362,-734.916126,0.00019452,2]
[339853694,1728070244372,-734.916126,0.00019452,2]
[339853695,1728070244381,-151.0,0.00019452,2]
[339853696,1728070244395,-151.0,0.00019452,2]
[339853697,1728070244405,-151.0,0.00019452,2]
[339853698,1728070244415,-159.137,0.00019452,2]
[339853699,1728070244426,-151.0,0.00019452,2]
[339853700,1728070244438,-158.824858,0.00019452,2]
[339853701,1728070244449,-158.824858,0.00019452,2]
[339853702,1728070244460,-1625.859354,0.00019452,2]
[339853703,1728070244471,-1625.859354,0.00019452,2]
[339853704,1728070244480,-1952.15215733,0.00019603,2]
[339853705,1728070244489,-1000.0,0.00019726,20]
[339853706,1728070244498,-151.0,0.00019726,2]
[339853707,1728070244508,-158.722444,0.00019726,2]
[339853708,1728070244519,-151.0,0.00019726,2]
[339853709,1728070244530,-1950.13203,0.00019726,2]
[339853710,1728070244540,-1950.13203,0.00019726,2]
[339853711,1728070244551,-194.907236,0.00019726,2]
[339853712,1728070244563,-194.907236,0.00019726,2]
[339853713,1728070244572,-224.09808771,0.00019861,2]
[339853714,1728070244584,-700.57046862,0.0001987,2]
[339853715,1728070244596,-3000.0,0.000199,2]
[339853716,1728070244604,-151.0,0.00019942,2]
[339853717,1728070244615,-158.824858,0.00019942,2]
[339853718,1728070244625,-158.824858,0.00019942,2]
[339853719,1728070244634,-1625.859354,0.00019942,2]
[339853720,1728070244644,-1625.859354,0.00019942,2]
[339853721,1728070244653,-194.907236,0.00019942,2]
[339853722,1728070244663,-194.907236,0.00019942,2]
[339853723,1728070244673,-9631.04991031,0.00019942,3]
[339853724,1728070244682,-9631.04991031,0.00019943,3]
[339853725,1728070244692,-9631.04991031,0.0001995,3]
[339853726,1728070244701,-151.0,0.0001995,2]
[339853727,1728070244710,-158.824858,0.0001995,2]
[339853728,1728070244719,-158.824858,0.0001995,2]
[339853729,1728070244729,-1625.859354,0.0001995,2]
[339853730,1728070244738,-1625.859354,0.0001995,2]
[339853731,1728070244747,-194.907236,0.0001995,2]
[339853732,1728070244757,-194.907246,0.0001995,2]
[339853733,1728070244766,-9631.04991031,0.00019951,3]
[339853734,1728070244775,-9631.04991031,0.00019952,3]
[339853735,1728070244784,-222.0098,0.00019952,2]
[339853736,1728070244793,-151.0,0.00019952,2]
[339853737,1728070244803,-151.0,0.00019952,2]
[339853738,1728070244814,-151.0,0.00019952,2]
[339853739,1728070244825,-260.407373,0.00019952,2]
[339853740,1728070244837,-151.0,0.00019952,2]
[339853741,1728070244848,-151.0,0.00019952,2]
[339853742,1728070244859,-406.307374,0.00019952,2]
[339853743,1728070244868,-406.307374,0.00019952,2]
[339853744,1728070244877,-151.0,0.00019952,2]
[339853745,1728070244886,-151.0,0.00019952,2]
[339853746,1728070244896,-151.0,0.00019952,2]
[339853747,1728070244905,-172.430946,0.00019952,2]
[339853748,1728070244914,-151.0,0.00019952,2]
[339853749,1728070244923,-234.102656,0.00019952,2]
[339853750,1728070244933,-214.447675,0.00019952,2]
[339853751,1728070244943,-214.447675,0.00019952,2]
[339853752,1728070244954,-214.447675,0.00019952,2]
[339853753,1728070244964,-214.447675,0.00019952,2]
[339853754,1728070244974,-151.0,0.00019952,2]
[339853755,1728070244983,-151.0,0.00019952,2]
[339853756,1728070244993,-355.207412,0.00019952,2]
[339853757,1728070245003,-355.207412,0.00019952,2]
[339853758,1728070245013,-355.207412,0.00019952,2]
[339853759,1728070245023,-355.207412,0.00019952,2]
[339853760,1728070245031,-239.07043,0.00019952,2]
[339853761,1728070245041,-455.727021,0.00019952,2]
[339853762,1728070245051,-455.727021,0.00019952,2]
[339853763,1728070245061,-455.727021,0.00019952,2]
[339853764,1728070245070,-455.727021,0.00019952,2]
[339853765,1728070245080,-151.0,0.00019952,2]
[339853766,1728070245090,-151.0,0.00019952,2]
[339853767,1728070245101,-151.0,0.00019952,2]
[339853768,1728070245110,-151.0,0.00019952,2]
[339853769,1728070245119,-151.0,0.00019952,2]
[339853770,1728070245128,-157.274504,0.00019952,2]
[339853771,1728070245272,-592.019826,0.00019952,2]
[339853772,1728070245281,-592.019826,0.00019952,2]
[339853773,1728070245291,-592.019826,0.00019952,2]
[339853774,1728070245301,-592.019826,0.00019952,2]
[339853775,1728070245310,-151.0,0.00019952,2]
[339853776,1728070245319,-151.0,0.00019952,2]
[339853777,1728070245330,-151.0,0.00019952,2]
[339853778,1728070245339,-151.0,0.00019952,2]
[339853779,1728070245349,-151.0,0.00019952,2]
[339853780,1728070245359,-151.0,0.00019952,2]
[339853781,1728070245369,-192.124349,0.00019952,2]
[339853782,1728070245378,-192.124349,0.00019952,2]
[339853783,1728070245388,-192.124349,0.00019952,2]
[339853784,1728070245398,-192.124349,0.00019952,2]
[339853785,1728070245407,-1950.13203,0.00019952,2]
[339853786,1728070245418,-1950.13203,0.00019952,2]
[339853787,1728070245429,-1950.13203,0.00019952,2]
[339853788,1728070245439,-1950.13203,0.00019952,2]
[339853789,1728070245450,-439.444052,0.00019952,2]
[339853790,1728070245460,-439.444052,0.00019952,2]
[339853791,1728070245469,-151.0,0.00019952,2]
[339853793,1728070245479,-151.0,0.00019952,2]
[339853794,1728070245488,-439.444052,0.00019952,2]
[339853796,1728070245499,-734.916126,0.00019952,2]
[339853797,1728070245511,-734.916126,0.00019952,2]
[339853798,1728070245522,-439.444052,0.00019952,2]
[339853799,1728070245534,-734.916126,0.00019952,2]
[339853800,1728070245543,-734.916126,0.00019952,2]
[339853801,1728070245552,-151.0,0.00019952,2]
[339853802,1728070245561,-151.0,0.00019952,2]
[339853803,1728070245570,-151.0,0.00019952,2]
[339853804,1728070245579,-151.0,0.00019952,2]
[339853805,1728070245588,-158.824858,0.00019952,2]
[339853806,1728070245598,-158.824858,0.00019952,2]
[339853807,1728070245607,-158.824858,0.00019952,2]
[339853808,1728070245617,-158.824864,0.00019952,2]
[339853809,1728070245626,-1625.859354,0.00019952,2]
[339853810,1728070245634,-1625.859354,0.00019952,2]
[339853811,1728070245645,-1625.859354,0.00019952,2]
[339853812,1728070245654,-1625.859359,0.00019952,2]
[339853813,1728070245663,-9631.04991031,0.00019952,3]
[339853814,1728070245673,-224.015403,0.00019953,2]
[339853815,1728070245682,-257.915436,0.00019953,2]
[339853816,1728070245690,-257.915436,0.00019953,2]
[339853817,1728070245700,-151.0,0.00019953,2]
[339853818,1728070245709,-151.0,0.00019953,2]
[339853819,1728070245719,-289.412563,0.00019953,2]
[339853820,1728070245728,-310.0,0.00019953,2]
[339853821,1728070245737,-310.0,0.00019953,2]
[339853822,1728070245746,-310.0,0.00019953,2]
[339853823,1728070245755,-310.0,0.00019953,2]
[339853825,1728070245764,-310.0,0.00019953,2]
[339853827,1728070245774,-310.0,0.00019953,2]
[339853830,1728070245783,-310.0,0.00019953,2]
[339853832,1728070245792,-310.0,0.00019953,2]
[339853834,1728070245801,-310.0,0.00019953,2]
[339853835,1728070245811,-310.0,0.00019953,2]
[339853837,1728070245820,-310.0,0.00019953,2]
[339853839,1728070245830,-310.0,0.00019953,2]
[339853841,1728070245841,-310.0,0.00019953,2]
[339853842,1728070245850,-310.0,0.00019953,2]
[339853844,1728070245859,-310.0,0.00019953,2]
[339853845,1728070245869,-425.389714,0.00019953,2]
[339853846,1728070245878,-310.0,0.00019953,2]
[339853847,1728070245887,-361.42599,0.00019953,2]
[339853848,1728070245896,-425.389714,0.00019953,2]
[339853849,1728070245906,-1994.71295,0.00019953,2]
[339853850,1728070245916,-151.0,0.00019953,2]
[339853851,1728070245925,-406.307374,0.00019953,2]
[339853853,1728070245934,-406.307374,0.00019953,2]
[339853854,1728070245943,-151.0,0.00019953,2]
[339853855,1728070245952,-1994.71295,0.00019953,2]
[339853856,1728070245963,-406.307374,0.00019953,2]
[339853857,1728070245972,-406.307374,0.00019953,2]
[339853858,1728070245981,-151.0,0.00019953,2]
[339853859,1728070245990,-151.0,0.00019953,2]
[339853860,1728070245999,-151.0,0.00019953,2]
[339853861,1728070246008,-214.447675,0.00019953,2]
[339853862,1728070246018,-214.447675,0.00019953,2]
[339853863,1728070246036,-214.447675,0.00019953,2]
[339853864,1728070246056,-214.447675,0.00019953,2]
[339853865,1728070246073,-151.0,0.00019953,2]
[339853866,1728070246093,-151.0,0.00019953,2]
[339853867,1728070246113,-355.207412,0.00019953,2]
[339853868,1728070246130,-355.207412,0.00019953,2]
[339853869,1728070246148,-355.207412,0.00019953,2]
[339853870,1728070246162,-355.207412,0.00019953,2]
[339853871,1728070246179,-455.727021,0.00019953,2]
[339853872,1728070246198,-455.727021,0.00019953,2]
[339853873,1728070246218,-455.727021,0.00019953,2]
[339853874,1728070246233,-455.727021,0.00019953,2]
[339853875,1728070246254,-151.0,0.00019953,2]
[339853876,1728070246269,-151.0,0.00019953,2]
[339853877,1728070246285,-151.0,0.00019953,2]
[339853878,1728070246299,-592.019826,0.00019953,2]
[339853879,1728070246315,-592.019826,0.00019953,2]
[339853880,1728070246331,-592.019826,0.00019953,2]
[339853881,1728070246347,-592.019826,0.00019953,2]
[339853882,1728070246365,-151.0,0.00019953,2]
[339853883,1728070246380,-151.0,0.00019953,2]
[339853884,1728070246396,-151.0,0.00019953,2]
[339853885,1728070246412,-151.0,0.00019953,2]
[339853886,1728070246428,-151.0,0.00019953,2]
[339853887,1728070246446,-151.0,0.00019953,2]
[339853888,1728070246461,-247.369156,0.00019953,2]
[339853889,1728070246478,-192.124349,0.00019953,2]
[339853890,1728070246493,-192.124349,0.00019953,2]
[339853891,1728070246509,-192.124349,0.00019953,2]
[339853892,1728070246527,-192.124349,0.00019953,2]
[339853893,1728070246542,-192.124349,0.00019953,2]
[339853894,1728070246559,-192.124349,0.00019953,2]
[339853895,1728070246574,-192.124349,0.00019953,2]
[339853896,1728070246589,-192.124345,0.00019953,2]
[339853897,1728070246612,-1950.13203,0.00019953,2]
[339853898,1728070246626,-1950.13203,0.00019953,2]
[339853899,1728070246641,-1950.13203,0.00019953,2]
[339853900,1728070246656,-1950.13203,0.00019953,2]
[339853901,1728070246671,-478.29897194,0.00019953,2]
[339853902,1728070247508,-1471.83305806,0.00019953,2]
[339853903,1728070247520,-1950.13203,0.00019953,2]
[339853904,1728070247530,-439.444052,0.00019953,2]
[339853905,1728070247542,-439.444052,0.00019953,2]
[339853906,1728070247552,-439.444052,0.00019953,2]
[339853907,1728070247562,-439.444052,0.00019953,2]
[339853908,1728070247571,-151.0,0.00019953,2]
[339853909,1728070247581,-734.916126,0.00019953,2]
[339853910,1728070247591,-151.0,0.00019953,2]
[339853911,1728070247602,-439.444052,0.00019953,2]
[339853912,1728070247611,-734.916126,0.00019953,2]
[339853913,1728070247622,-244.995086,0.00019953,2]
[339853914,1728070247633,-439.444052,0.00019953,2]
[339853915,1728070247644,-734.916126,0.00019953,2]
[339853916,1728070247654,-439.444052,0.00019953,2]
[339853917,1728070247664,-734.916126,0.00019953,2]
[339853918,1728070247673,-439.444043,0.00019953,2]
[339853919,1728070247683,-734.916126,0.00019953,2]
[339853920,1728070247692,-734.916126,0.00019953,2]
[339853921,1728070247702,-734.916126,0.00019953,2]
[339853922,1728070247711,-734.916135,0.00019953,2]
[339853923,1728070247720,-155.237614,0.00019956,2]
[339853924,1728070247730,-151.0,0.00019956,2]
[339853925,1728070247739,-151.0,0.00019956,2]
[339853926,1728070247749,-214.447675,0.00019956,2]
[339853927,1728070247759,-214.447675,0.00019956,2]
[339853928,1728070247769,-214.447675,0.00019956,2]
[339853929,1728070247778,-214.447675,0.00019956,2]
[339853930,1728070247787,-232.538608,0.00019956,2]
[339853931,1728070247796,-355.207412,0.00019956,2]
[339853932,1728070247809,-355.207412,0.00019956,2]
[339853933,1728070247819,-355.207412,0.00019956,2]
[339853934,1728070247828,-355.207412,0.00019956,2]
[339853935,1728070247837,-455.727021,0.00019956,2]
[339853936,1728070247847,-455.727021,0.00019956,2]
[339853937,1728070247856,-455.727021,0.00019956,2]
[339853938,1728070247866,-455.727021,0.00019956,2]
[339853939,1728070247876,-151.0,0.00019956,2]
[339853940,1728070247886,-151.0,0.00019956,2]
[339853941,1728070247895,-592.019826,0.00019956,2]
[339853942,1728070247905,-592.019826,0.00019956,2]
[339853943,1728070247914,-592.019826,0.00019956,2]
[339853944,1728070247924,-592.019826,0.00019956,2]
[339853945,1728070247933,-151.0,0.00019956,2]
[339853946,1728070247943,-206.264888,0.00019956,2]
[339853947,1728070247953,-151.0,0.00019956,2]
[339853948,1728070247963,-1950.13203,0.00019956,2]
[339853949,1728070247973,-1950.13203,0.00019956,2]
[339853950,1728070247982,-257.915436,0.00019958,2]
[339853951,1728070247993,-257.915436,0.00019958,2]
[339853952,1728070248003,-425.389714,0.00019958,2]
[339853953,1728070248013,-425.389714,0.00019958,2]
[339853954,1728070248023,-1994.71295,0.00019958,2]
[339853955,1728070248033,-1994.71295,0.00019958,2]
[339853956,1728070248042,-5000.0,0.00019959,2]
[339853957,1728070248052,-913.93623003,0.00019959,2]
[339853958,1728070248062,-151.0,0.0001996,2]
[339853959,1728070248072,-257.915436,0.0001996,2]
[339853960,1728070248081,-257.915436,0.0001996,2]
[339853961,1728070248091,-257.915436,0.0001996,2]
[339853962,1728070248102,-257.915436,0.0001996,2]
[339853963,1728070248112,-257.915436,0.0001996,2]
[339853964,1728070248121,-257.915436,0.0001996,2]
[339853965,1728070248131,-151.0,0.0001996,2]
[339853966,1728070248141,-151.0,0.0001996,2]
[339853967,1728070248151,-151.0,0.0001996,2]
[339853968,1728070248160,-425.389714,0.0001996,2]
[339853969,1728070248170,-425.389714,0.0001996,2]
[339853970,1728070248180,-425.389714,0.0001996,2]
[339853971,1728070248190,-425.389714,0.0001996,2]
[339853972,1728070248200,-425.389714,0.0001996,2]
[339853973,1728070248210,-425.389714,0.0001996,2]
[339853974,1728070248221,-1994.71295,0.0001996,2]
[339853975,1728070248231,-1994.71295,0.0001996,2]
[339853976,1728070248242,-1994.71295,0.0001996,2]
[339853977,1728070248253,-406.307374,0.0001996,2]
[339853978,1728070248266,-406.307374,0.0001996,2]
[339853979,1728070248278,-406.307374,0.0001996,2]
[339853980,1728070248288,-1994.71295,0.0001996,2]
[339853981,1728070248299,-1994.71295,0.0001996,2]
[339853982,1728070248308,-1994.71295,0.0001996,2]
[339853983,1728070248318,-406.307374,0.0001996,2]
[339853984,1728070248332,-406.307374,0.0001996,2]
[339853985,1728070248342,-406.307374,0.0001996,2]
[339853986,1728070248352,-151.0,0.0001996,2]
[339853987,1728070248362,-151.0,0.0001996,2]
[339853988,1728070248371,-214.447675,0.0001996,2]
[339853989,1728070248381,-214.447675,0.0001996,2]
[339853990,1728070248395,-214.447675,0.0001996,2]
[339853991,1728070248406,-214.447675,0.0001996,2]
[339853992,1728070248415,-355.207412,0.0001996,2]
[339853993,1728070248425,-355.207412,0.0001996,2]
[339853994,1728070248436,-355.207412,0.0001996,2]
[339853995,1728070248446,-355.207412,0.0001996,2]
[339853996,1728070248456,-455.727021,0.0001996,2]
[339853997,1728070248466,-455.727021,0.0001996,2]
[339853998,1728070248477,-455.727021,0.0001996,2]
[339853999,1728070248487,-455.727021,0.0001996,2]
[339854000,1728070248498,-151.0,0.0001996,2]
[339854001,1728070248508,-151.0,0.0001996,2]
[339854002,1728070248518,-592.019826,0.0001996,2]
[339854003,1728070248528,-592.019826,0.0001996,2]
[339854004,1728070248538,-592.019826,0.0001996,2]
[339854005,1728070248547,-592.019826,0.0001996,2]
[339854006,1728070248557,-151.0,0.0001996,2]
[339854007,1728070248567,-151.0,0.0001996,2]
[339854008,1728070248577,-1950.13203,0.0001996,2]
[339854009,1728070248587,-1950.13203,0.0001996,2]
[339854010,1728070248598,-1950.13203,0.0001996,2]
[339854011,1728070248608,-1950.132037,0.0001996,2]
[339854012,1728070248617,-9631.04991031,0.0001996,3]
[339854013,1728070248626,-9631.04991031,0.00019961,3]
[339854014,1728070248636,-151.0,0.00019961,2]
[339854015,1728070248646,-257.915436,0.00019961,2]
[339854016,1728070248655,-257.915436,0.00019961,2]
[339854017,1728070248664,-278.78638,0.00019961,2]
[339854018,1728070248674,-425.389714,0.00019961,2]
[339854019,1728070248684,-425.389714,0.00019961,2]
[339854020,1728070248694,-1994.71295,0.00019961,2]
[339854021,1728070248703,-406.307374,0.00019961,2]
[339854022,1728070248713,-1994.71295,0.00019961,2]
[339854023,1728070248722,-406.307374,0.00019961,2]
[339854024,1728070248731,-151.0,0.00019961,2]
[339854025,1728070248741,-214.447675,0.00019961,2]
[339854026,1728070248750,-214.447675,0.00019961,2]
[339854027,1728070248760,-355.207412,0.00019961,2]
[339854028,1728070248769,-355.207412,0.00019961,2]
[339854029,1728070248779,-455.727021,0.00019961,2]
[339854030,1728070248789,-455.727021,0.00019961,2]
[339854031,1728070248798,-151.0,0.00019961,2]
[339854032,1728070248808,-592.019826,0.00019961,2]
[339854033,1728070248819,-592.019826,0.00019961,2]
[339854034,1728070248828,-151.0,0.00019962,2]
[339854035,1728070248837,-151.0,0.00019962,2]
[339854036,1728070248847,-151.0,0.00019962,2]
[339854037,1728070248857,-151.0,0.00019962,2]
[339854038,1728070248867,-151.0,0.00019962,2]
[339854039,1728070248877,-151.0,0.00019962,2]
[339854040,1728070248887,-151.0,0.00019962,2]
[339854041,1728070248896,-151.0,0.00019962,2]
[339854042,1728070248906,-151.0,0.00019962,2]
[339854043,1728070248915,-151.0,0.00019962,2]
[339854044,1728070248925,-151.0,0.00019962,2]
[339854045,1728070248935,-151.0,0.00019962,2]
[339854046,1728070248944,-151.0,0.00019962,2]
[339854047,1728070248954,-151.0,0.00019962,2]
[339854048,1728070248963,-151.0,0.00019962,2]
[339854049,1728070248973,-151.0,0.00019962,2]
[339854050,1728070248982,-151.0,0.00019962,2]
[339854051,1728070248992,-207.760296,0.00019962,2]
[339854052,1728070249002,-207.760296,0.00019962,2]
[339854053,1728070249012,-157.49175,0.00019962,2]
[339854054,1728070249022,-207.760296,0.00019962,2]
[339854055,1728070249033,-207.760296,0.00019962,2]
[339854056,1728070249044,-151.0,0.00019962,2]
[339854057,1728070249055,-151.0,0.00019962,2]
[339854058,1728070249065,-151.0,0.00019962,2]
[339854059,1728070249075,-151.0,0.00019962,2]
[339854060,1728070249087,-151.0,0.00019962,2]
[339854061,1728070249098,-151.0,0.00019962,2]
[339854062,1728070249108,-151.0,0.00019962,2]
[339854063,1728070249117,-151.0,0.00019962,2]